Cogmind - Beta 13 @@@ ROGUE MODE // 2024.04.23 @ 22:11:00 Player: satan5 Result: Self-destructed Performance ------------- Evolutions (3) 1500 Regions Visited (5) 1000 Robots Destroyed (78) 390 Value Destroyed (2374) 2374 Prototype IDs (11) 220 Alien Tech Used (0) 0 Bonus (418) 418 TOTAL SCORE: 5902 Bonus ------- High Alert Combat Kills 418 Cogmind --------- Core Integrity 622/700 Matter 235/300 Energy 92/100 System Corruption 0% Temperature Cool (12) Movement Treading (170) Location -7/Factory Parts ------- > --- POWER (1) -------- (None) > --- PROPULSION (4) --- Armored Treads Armored Treads Armored Treads Armored Treads > --- UTILITY (6) ------ Advanced Heat Sink High-capacity Storage Unit Improved Terrain Scanner Advanced Terrain Scan Processor Advanced Targeting Computer Target Analyzer > --- WEAPON (2) ------- Advanced Beam Cannon Improved Assault Rifle > --- INVENTORY (20) --- Deuterium Engine Light Deuterium Engine Light Nuclear Core Huge Storage Unit Advanced Terrain Scan Processor System Restoration Module High-powered Tractor Beam Heavy Particle Gun Advanced Beam Rifle Heavy Laser Advanced Beam Cannon Heavy Assault Rifle Advanced EMP Blaster Rocket Launcher Improved Datajack Flail Peak State ------------ > --- POWER ------------ Light Deuterium Engine > --- PROPULSION ------- Armored Treads Armored Treads Armored Treads Armored Treads > --- UTILITY ---------- Advanced Heat Sink High-capacity Storage Unit Improved Terrain Scanner Advanced Terrain Scan Processor Advanced Targeting Computer Target Analyzer > --- WEAPON ----------- Advanced Beam Cannon Improved Assault Rifle > --- INVENTORY -------- Deuterium Engine Light Deuterium Engine Light Nuclear Core Huge Storage Unit System Restoration Module High-powered Tractor Beam Heavy Particle Gun Advanced Beam Rifle Heavy Laser Advanced Beam Cannon Heavy Assault Rifle Advanced EMP Blaster Rocket Launcher Improved Datajack Flail [Rating: 44] Favorites ----------- Power Light Deuterium Engine Engine Light Deuterium Engine Propulsion Aluminum Leg Treads Armored Treads Leg Aluminum Leg Utility Large Storage Unit Device Improved Terrain Scanner Storage Large Storage Unit Processor Advanced Targeting Computer Hackware Hacking Suite Weapon Pulse Rifle Energy Gun Pulse Rifle Energy Cannon Advanced Beam Cannon Ballistic Gun Improved Assault Rifle Launcher Rocket Launcher Impact Weapon Flail Build | -11 -10 -10 -9 -8 -7 ------- Run | Yrd Mat Min Mat Mat Fac Slots Evolved 6 | . . . 2 2 2 Power . | . . . . . . Propulsion 2 | . . . 2 . . Utility 4 | . . . . 2 2 Weapon . | . . . . . . Parts Attached 71 | 6 . 1 23 37 4 Power 5 | 1 . . 1 3 . Engine 5 | 1 . . 1 3 . Core . | . . . . . . Reactor . | . . . . . . Propulsion 22 | 2 . . 11 9 . Treads 6 | 2 . . . 4 . Leg 16 | . . . 11 5 . Wheel . | . . . . . . Hover . | . . . . . . Flight . | . . . . . . Utility 15 | 1 . 1 1 10 2 Device 7 | . . 1 . 5 1 Storage 3 | 1 . . 1 1 . Processor 4 | . . . . 3 1 Hackware 1 | . . . . 1 . Protection . | . . . . . . Artifact . | . . . . . . Weapon 29 | 2 . . 10 15 2 Energy Gun 13 | . . . 7 6 . Energy Cannon 1 | . . . . 1 . Ballistic Gun 7 | 2 . . 1 3 1 Ballistic Cannon . | . . . . . . Launcher 7 | . . . 2 5 . Special Weapon . | . . . . . . Impact Weapon 1 | . . . . . 1 Slashing Weapon . | . . . . . . Piercing Weapon . | . . . . . . Special Melee Weapon . | . . . . . . Unidentified Prototypes 5 | . . . 1 4 . Parts Lost 20 | . . 5 4 10 1 Power 3 | . . . 1 1 1 Propulsion 9 | . . 2 2 5 . Utility 3 | . . 1 . 2 . Weapon 5 | . . 2 1 2 . Highest Loss Streak 6 | . . 5 3 6 1 To Critical Strikes . | . . . . . . Average Slot Usage (%) 87 | . 85 99 76 88 93 Engine 10 | . 14 14 11 8 6 Treads 14 | . 28 28 . 13 30 Leg 17 | . . . 34 19 . Device 7 | . . 14 . 10 12 Storage 10 | . 14 14 11 9 7 Processor 5 | . . . . 7 20 Energy Gun 6 | . . . 18 5 . Energy Cannon 3 | . . . . 4 7 Ballistic Gun 8 | . 28 27 1 6 6 Naked Turns . | . . . . . . Heaviest Build 56 | 13 13 14 36 56 54 Greatest Support 80 | 40 40 40 40 80 80 Greatest Overweight (x) 9 | 1 . 3 9 1 . Average Overweight (x) . | . . . . . . Largest Inventory Capacity 20 | 8 8 8 15 20 20 Average Capacity 14 | 7 8 8 13 16 20 Most Carried 16 | 8 6 8 13 16 16 Average Carried 11 | 4 5 7 8 13 15 Final Capacity 20 | 8 8 8 15 20 20 Final Carried 16 | 5 6 8 9 16 16 Class Distribution -------------------- 76% | Mutant 23% | Scavenger-Mutant Dominant Class ---------------- Mutant | -10/Materials Mutant | -10/Mines Mutant | -9/Materials Mutant | -8/Materials Mutant | -7/Factory Resources | -11 -10 -10 -9 -8 -7 ----------- Run | Yrd Mat Min Mat Mat Fac Matter Collected 1412 | 284 31 35 275 787 . Remotely . | . . . . . . Salvage Created 2992 | 88 49 45 536 2129 145 Parts 170 | 6 6 7 32 114 5 Haulers Intercepted 5 | . . . 2 3 . Recyclers Shooed 3 | . . . . 3 . Parts Field Recycled . | . . . . . . Retrieved Matter . | . . . . . . Parts Self-Destructed . | . . . . . . Prevented . | . . . . . . Kills | -11 -10 -10 -9 -8 -7 ------- Run | Yrd Mat Min Mat Mat Fac Combat Hostiles Destroyed 59 | . 3 3 13 37 3 Guns 30 | . 3 3 8 15 1 Cannons 14 | . . . . 13 1 AOE 12 | . . . 5 7 . Classes Destroyed 12 | 2 1 . 4 4 1 Worker 1 | . . . . 1 . Builder 3 | . . . . 3 . Tunneler 1 | 1 . . . . . Hauler 5 | . . . 2 3 . Recycler 5 | 1 . . 1 3 . Operator 3 | . . . . 3 . Watcher 3 | . . . 1 2 . Swarmer 13 | . 3 3 4 3 . Grunt 35 | . . . 8 25 2 Sentry 8 | . . . 1 7 . Hunter 2 | . . . . 2 . Programmer 1 | . . . . . 1 Best Kill Streak 9 | 1 3 3 3 9 2 Combat Bots Only 7 | . 3 3 3 7 2 Max Kills in Single Turn 3 | 1 1 2 3 3 1 Gunslinging 1 | . . 1 . . . Exploded 2 | . . . 2 2 . Melee . | . . . . . . Uniques/NPCs Destroyed . | . . . . . . Combat | -11 -10 -10 -9 -8 -7 -------- Run | Yrd Mat Min Mat Mat Fac Hostile Shots Fired 355 | . 20 31 48 175 81 Missed 106 | . 5 8 15 56 22 Damage Taken 3972 | . 125 660 615 1893 679 Core 633 | . 61 185 41 268 78 Absorbed by Shields . | . . . . . . Regen/Repaired (Parts) 71 | . . . . 71 . Core Remaining (%) 60 | 100 . 1 89 51 . Volleys Fired 195 | 6 8 6 29 136 10 Largest 2 | 2 2 2 2 2 2 Hottest 126 | 40 40 40 126 126 91 Shots Fired 385 | 12 16 12 58 267 20 Gun 293 | 12 16 12 55 188 10 Cannon 76 | . . . . 66 10 Launcher 16 | . . . 3 13 . Special . | . . . . . . Kinetic 169 | 12 16 12 9 110 10 Thermal 200 | . . . 46 144 10 Explosive 15 | . . . 3 12 . Electromagnetic 1 | . . . . 1 . Robot Hit Streak 24 | 3 4 2 8 20 24 Robot Miss Streak 3 | 2 2 2 3 3 1 Penetration Max . | . . . . . . Secondary Targets 1 | . . 1 . . . Max Gunslinging Chain 1 | . . 1 . . . Shots Hit Robots 252 | 8 7 6 33 181 17 Core Hits 126 | 3 5 4 20 89 5 Critical Kills 4 | . . . . 2 2 Critical Parts Destroyed 2 | . . . . 2 . Critical Strikes 10 | . . . . 8 2 Burn 4 | . . . . 4 . Meltdown 3 | . . . . 2 1 Destroy 3 | . . . . 2 1 Melee Attacks 2 | . . . . . 2 Impact 2 | . . . . . 2 Slashing . | . . . . . . Piercing . | . . . . . . Sneak Attacks . | . . . . . . Combat Hostiles . | . . . . . . Follow-up Attacks . | . . . . . . Damage Inflicted 5386 | 83 86 62 784 4046 325 Guns 2921 | 83 86 62 520 2069 101 Cannons 1336 | . . . . 1112 224 Explosions 1129 | . . . 264 865 . Melee . | . . . . . . Ramming . | . . . . . . Kinetic 1481 | 83 86 62 31 1118 101 Thermal 2776 | . . . 489 2063 224 Explosive 1065 | . . . 264 801 . Electromagnetic 64 | . . . . 64 . Impact . | . . . . . . Slashing . | . . . . . . Piercing . | . . . . . . Highest Corruption . | . . . . . . Average Corruption . | . . . . . . Corruption Purged . | . . . . . . Corruption Blocked . | . . . . . . Overload Shots . | . . . . . . Overflow Damage 106 | . . . 75 29 2 Projectiles 15 | . . . . 13 2 Explosions 91 | . . . 75 16 . Melee . | . . . . . . Knockbacks . | . . . . . . Impact . | . . . . . . Kinetic . | . . . . . . Secondary . | . . . . . . Self-Inflicted Damage 270 | . . . 250 20 . Shots 5 | . . . 4 1 . Rammed . | . . . . . . Targets Rammed . | . . . . . . Kicked . | . . . . . . Crushed . | . . . . . . Highest Temperature 374 | . . . 294 374 1 Average Temperature 97 | . . . 96 98 1 Received Heat Transfer 1392 | . . . 132 1062 198 Effects 1 | . . . 1 . . Interference 1 | . . . 1 . . Siege Activations . | . . . . . . Robots Corrupted . | . . . . . . Combat Hostiles . | . . . . . . Parts Fried . | . . . . . . Impact Corruptions . | . . . . . . Robots Melted 3 | . . . . 2 1 Combat Hostiles 3 | . . . . 2 1 Parts Melted 6 | . . . . 4 2 Heat Transferred 5661 | . . . 1073 4218 370 Parts Sabotaged . | . . . . . . Parts Stolen . | . . . . . . Parts Stripped . | . . . . . . Power Chain Reactions 2 | . . . . 2 . Alert | -11 -10 -10 -9 -8 -7 ------- Run | Yrd Mat Min Mat Mat Fac Peak Influence 867 | 10 126 118 222 867 476 Initial 343 | . 6 48 26 72 343 Average 286 | 3 61 106 75 451 365 Maximum Alert Level 3 | . . . 1 3 2 Low Security (%) 48 | 100 100 100 90 19 . Level 1 20 | . . . 9 20 82 Level 2 26 | . . . . 51 17 Level 3 4 | . . . . 9 . Level 4 . | . . . . . . Level 5 . | . . . . . . High Security . | . . . . . . Max Security . | . . . . . . Squads Dispatched 10 | . . . 3 6 1 Investigation 5 | . . . 2 2 1 Extermination . | . . . . . . Reinforcement 5 | . . . 1 4 . Assault . | . . . . . . Garrison . | . . . . . . Intercept . | . . . . . . Searches Triggered . | . . . . . . Construction Impeded 1 | . . . . 1 . Haulers Reinforced . | . . . . . . Active Scanning Responses . | . . . . . . Cargo Convoy Interrupts . | . . . . . . Stealth | -11 -10 -10 -9 -8 -7 --------- Run | Yrd Mat Min Mat Mat Fac Distress Signals 9 | . . . 4 4 1 Communications Jammed . | . . . . . . Distress Signals . | . . . . . . Times Spotted 95 | . 4 5 21 52 13 Peak Tracking Total 8 | . 3 3 5 6 8 Tactical Retreats 3 | . 1 . . 1 1 Traps | -11 -10 -10 -9 -8 -7 ------- Run | Yrd Mat Min Mat Mat Fac Traps Triggered 6 | . . . 2 3 1 Indirectly 3 | . . . . 3 . Trap Hack Attempts . | . . . . . . Triggered . | . . . . . . Disarmed . | . . . . . . Reprogrammed . | . . . . . . Reused . | . . . . . . Traps Extracted . | . . . . . . Installed . | . . . . . . Triggered . | . . . . . . Machines | -11 -10 -10 -9 -8 -7 ---------- Run | Yrd Mat Min Mat Mat Fac Machines Disabled 6 | . . . 2 4 . Max in Single Turn 2 | . . . 2 1 . Machines Repaired . | . . . . . . Machines Dismantled . | . . . . . . Machines Sabotaged . | . . . . . . Overloaded Fab Kills . | . . . . . . Hacking | -11 -10 -10 -9 -8 -7 --------- Run | Yrd Mat Min Mat Mat Fac Machines Accessed 16 | . 3 . 6 4 3 Terminals 12 | . 3 . 5 3 1 Fabricators . | . . . . . . Repair Stations 3 | . . . 1 1 1 Recycling Units . | . . . . . . Scanalyzers . | . . . . . . Garrison Access 1 | . . . . . 1 Total Hacks 46 | . 12 . 18 9 7 Successful 20 | . 6 . 7 4 3 Failed 26 | . 6 . 11 5 4 Catastrophic 7 | . 2 . 1 1 3 Database Lockouts . | . . . . . . Manual 3 | . 1 . . 1 1 Terminals 37 | . 12 . 15 6 4 Fabricators . | . . . . . . Repair Stations 7 | . . . 3 3 1 Recycling Units . | . . . . . . Scanalyzers . | . . . . . . Garrison Access 2 | . . . . . 2 Terminal Hacks 16 | . 6 . 6 2 2 Robot Analysis 2 | . 1 . 1 . . Prototype ID Bank 3 | . 1 . 1 1 . Branch Access Points 2 | . 1 . . . 1 Unreport Threat 3 | . 1 . 2 . . Hauler Manifests 1 | . 1 . . . . Registered Components 1 | . . . . . 1 Zone Layout 4 | . 1 . 2 1 . Fabricator Hacks . | . . . . . . Repair Station Hacks 3 | . . . 1 2 . Scan Component 2 | . . . 1 1 . Repair 1 | . . . . 1 . Recycling Unit Hacks . | . . . . . . Scanalyzer . | . . . . . . Garrison Access Hacks . | . . . . . . Unauthorized Hacks 1 | . . . . . 1 Terminals 1 | . . . . . 1 Track 1 | . . . . . 1 Fabricators . | . . . . . . Repair Stations . | . . . . . . Recycling Units . | . . . . . . Scanalyzers . | . . . . . . Garrison Access . | . . . . . . Data Cores Recovered . | . . . . . . Used . | . . . . . . Hacking Detections 16 | . 3 . 6 4 3 Full Trace Events 4 | . . . 2 1 1 Feedback Events . | . . . . . . Feedback Blocked . | . . . . . . Robot Schematics Acquired . | . . . . . . Robots Built . | . . . . . . Authchips . | . . . . . . Time . | . . . . . . Total Robot Build Rating . | . . . . . . Part Schematics Acquired . | . . . . . . Parts Built . | . . . . . . Authchips . | . . . . . . Time . | . . . . . . Total Part Build Rating . | . . . . . . Parts Repaired 1 | . . . . 1 . Time 38 | . . . . 38 . Parts Recycled . | . . . . . . Recycled Matter . | . . . . . . Retrieved Matter . | . . . . . . Retrieved Components . | . . . . . . Parts Scanalyzed . | . . . . . . Part Schematics Acquired . | . . . . . . Parts Damaged . | . . . . . . Bothacking | -11 -10 -10 -9 -8 -7 ------------ Run | Yrd Mat Min Mat Mat Fac Used RIF Installer . | . . . . . . Robots Hacked . | . . . . . . Non-combat . | . . . . . . Combat . | . . . . . . Robot Hacks Applied . | . . . . . . Relay Couplers Released . | . . . . . . Fabnet Peak Effective % . | . . . . . . Robots Rewired . | . . . . . . Allies Hacked . | . . . . . . Hacks Repelled . | . . . . . . Allies | -11 -10 -10 -9 -8 -7 -------- Run | Yrd Mat Min Mat Mat Fac Total Allies . | . . . . . . Largest Group . | . . . . . . Highest-Rated Group . | . . . . . . Highest-Rated Ally . | . . . . . . Total Orders . | . . . . . . Ally Attacks . | . . . . . . Total Damage . | . . . . . . Kills . | . . . . . . Allies Corrupted . | . . . . . . Allies Melted . | . . . . . . Intel | -11 -10 -10 -9 -8 -7 ------- Run | Yrd Mat Min Mat Mat Fac Robot Analysis Total 2 | . 1 . 1 . . Derelict Logs Recovered . | . . . . . . Drone Launches . | . . . . . . Drone Recoveries . | . . . . . . Exploration | -11 -10 -10 -9 -8 -7 ------------- Run | Yrd Mat Min Mat Mat Fac Turns Passed 2591 | 91 245 182 544 1259 270 Spaces Moved 1174 | 51 138 98 271 483 133 Core 31 | 26 . 3 2 . . Treads 557 | 25 138 95 . 166 133 Legs 586 | . . . 269 317 . Wheels . | . . . . . . Hover . | . . . . . . Flight . | . . . . . . Fastest Speed 50 | 50 160 160 120 120 170 Average Speed 144 | 115 160 161 131 140 170 Slowest Speed 500 | 160 160 200 500 250 170 Overloaded Moves . | . . . . . . Propulsion Burnouts . | . . . . . . Robots Hopped . | . . . . . . Cave-ins Triggered . | . . . . . . Exploration Rate (%) 23 | 4 29 23 28 51 7 Regions Visited 5 Branch Regions 1 Pre-discovered Areas . | . . . . . . Known Exits Taken 1 | . 1 . . . . Unknown Exits Taken 4 | 1 . 1 1 1 . Scrap Searched . | . . . . . . Spaces Dug 1 | . . . . . 1 Terrain Destroyed 117 | . . . 60 56 1 Melee 1 | . . . . . 1 Projectile . | . . . . . . AOE 116 | . . . 60 56 . Terrain Rammed . | . . . . . . Walls Destroyed . | . . . . . . Machines Disabled . | . . . . . . Actions | -11 -10 -10 -9 -8 -7 --------- Run | Yrd Mat Min Mat Mat Fac Total 1683 | 72 148 112 400 799 152 Wait 141 | . 2 3 52 83 1 Move 1169 | 50 137 97 270 482 133 Hop . | . . . . . . Pick Up 76 | 10 1 4 19 40 2 Fast Attach 6 | 1 . . 3 2 . Attach 43 | 5 . 1 15 20 2 Detach 1 | . . . 1 . . Swap 22 | . . . 5 15 2 Drop 28 | . . 1 6 21 . Fire 195 | 6 8 6 29 136 10 Melee 2 | . . . . . 2 Ram . | . . . . . . Kick . | . . . . . . Crush . | . . . . . . Escape Stasis . | . . . . . . Rewire . | . . . . . . Trap . | . . . . . . Miscellaneous . | . . . . . . Route ------- -11/Scrapyard -10/Materials (discovered 2 exits: *Min x2) -10/Mines -9/Materials -8/Materials -7/Factory (discovered 4 exits: Sto x2 / Low x2) History --------- Turn | Location | Event 4 | -11/Scrapyard | Discovered new exit (range 15) 92 | -11/Scrapyard | Entered Materials 131 | -10/Materials | Discovered new exit (range 17) 161 | -10/Materials | Identified exit to Mines 302 | -10/Materials | Build established: Mutant 337 | -10/Materials | Entered Mines 445 | -10/Mines | Received a Rocket Launcher from a helpful Derelict 464 | -10/Mines | Discovered new exit (range 12) 489 | -10/Mines | Assembled infested the area 514 | -10/Mines | Core integrity fell below 50% 519 | -10/Mines | Core integrity fell below 20% 519 | -10/Mines | Entered Materials 519 | -9/Materials | Evolved 2 slots: Propulsion x2 547 | -9/Materials | Lost 5 parts (2n1u2w) 873 | -9/Materials | Lost 3 parts (1p1n1w) 909 | -9/Materials | Discovered new exit (range 13) 1063 | -9/Materials | Entered another Materials area 1063 | -8/Materials | Evolved 2 slots: Utility x2 1260 | -8/Materials | Repaired Pulse Rifle 1483 | -8/Materials | Destroyed 7 combat bots 1491 | -8/Materials | Lost 6 parts (1p2n2u1w) 1630 | -8/Materials | Build established: Scavenger-Mutant 2139 | -8/Materials | Build established: Mutant 2275 | -8/Materials | Destroyed 7 combat bots 2297 | -8/Materials | Discovered new exit (range 16) 2322 | -8/Materials | Entered Factory 2322 | -7/Factory | Evolved 2 slots: Utility x2 2474 | -7/Factory | Identified exit to Storage 2474 | -7/Factory | Identified exit to Lower Caves 2592 | -7/Factory | Self-destructed Last Messages --------------- 02574_ Slug penetrates Wall. 02580_ G-47 Trooper destroyed. 02580_ Slug penetrates Wall. 02581_ Wall collapses. 02581_ U-05 Engineer lays Concrete. 02581_ K-01 Serf collects debris. 02581_ U-05 Engineer lays Concrete. 02583_ Penetrated by Slug. 02583_ U-05 Engineer lays Concrete. 02583_ R-06 Scavenger collects Imp. Heat Sink. 02584_ U-05 Engineer lays Concrete. 02585_ K-01 Serf collects debris. 02586_ U-05 Engineer lays Concrete. 02586_ R-06 Scavenger collects Imp. Heat Sink. 02586_ Penetrated by Slug. 02587_ U-05 Engineer lays Concrete. 02588_ Lgt. Deuterium Engine destroyed. 02589_ M-28 Smith repairs R-06 Scavenger. 02589_ U-05 Engineer lays Concrete. 02592_ U-05 Engineer builds a Wall. Map ----- +----------------------------------------------------+ | ?????????????????????????????????????????????????? | | ?????????????????????????????????????????????????? | | ?????????????????????????????????????????????????? | | ?????????????????????????????????????????????????? | | ?????????????????????????????????????????????????? | | ?????????????????????????????????????????????????? | | ?????????????????????????????????????????????????? | | ?????????????????????????????????????????????????? | | ??????????? ?????????????????????????????????????? | | ?????????? ????? ? ??????????????????????????? | | ??????? !* ?""" ? ? ?? ??????????????????? | | ??##? ??? ? ? ??????????????????? | | ?#### ?? ?? ? ??????? ???????????????? | | ???## ##?# ##?# ########?#?+?????????????? | | ?##?# #### ?### # ????????????????? | | ????# ####/#### # ? ???????????????? | | ##??# # ! # / ? ?#???????????? | | ##### # """ # #g """"? #???????????? | | ##### # """ # # """"" #???????????? | | ?##?# #[ """ # #g """ ###?????????? | | ###?# # # #g +? ????????? | | ##### # """ # # #?#?????????? | | # """ # # k ???#????????? | | ] # """ # #l == ""T"? ?##?????????? | | """ + # ^#u =! """"" ?#??????????? | | "G # """ # #@ #?#? ???????? | | """ # """ # hu#Y#######??#####????????? | | !!! # """ # m# ?? ? ##??#????????? | | !! # # r# """ == ##?#?????????? | | !! # """ # # """ == #####????????? | | # """ # +?""" #????????????? | | # """ # # ""T""????#?????????? | | """"" # = # #?? """""?###??????????? | | """" ######### # ? ??#???????????? | | """ %##?###?## #?#?########?#???????????? | | #####?### #?##?##?####?????????????? | | """"" ? ? ? ?? ? ????????????? | | """"" ? ?? ??????????????? | | """ ? ?? ??????????????? | | ???? ????????????????? | | ? ? ? ??????????????????? | | ##### ######?#?######????????????????????????? | | ##### ##???#??#?#????????????????????????????? | | #### #?#????????????????????????????????????? | | ??##T #??#???????????????????????????????????? | | ???## #?##???????????????????????????????????? | | ?#??? ???????????????????????????????????????? | | ??????? ???????????????????????????????????????? | | ?????????????????????????????????????????????????? | | ?????????????????????????????????????????????????? | +----------------------------------------------------+ Best States ------------- Heat Dissipation 53 Energy Generation 14 Energy Capacity 265 Matter Stores 300 Matter Capacity 300 Sight Range 16 Robot Scan Range 15 Terrain Scan Range 16 Terrain Scan Density 210 Evasion (%) 55 Targeting Accuracy 8 Target Analysis 5 Recoil Reduction 4 Offensive Hacking 10 Item Schematics ----------------- None Robot Schematics ------------------ None Fabricated ------------ Nothing Alien Tech Used ----------------- None Achievements -------------- None Challenges ------------ None Game ------ Seed SubdwellerThrusterModule Manual? 0 Play Time 00:24:23 Cumulative 152.6 hours Start 2024.04.22 @ 22:23:22 End 2024.04.23 @ 22:11:00 Sessions 3 Manual Loads 0 Difficulty Rogue Special Mode None Game No. 54 Rogue 40 Adventurer 14 Explorer 0 Win Type - Total 11 Types 9/0/0/1/0/0/0/0/1 Lore% 59 Gallery% 73 Achievement% 62 Wizard Run 0 Options --------- Layout 1 ASCII 0 Keyboard 0 Movement Mouse Keybinds 0 Fullscreen 1 Font 20/SmallcapsGlow Map View 50x35 Zoom Use 0% Tactical HUD 1 Map Filters NONE Filters NONE Steam 1 RUN: 4f62f0d0-32d5-476f-9f84-ee9007c237d2